bitfinex/quotes_SOLUSD_20240718
["timestamp","ask_amount","ask_price","bid_price","bid_amount"]
[1721268280808,1.21732586,159.8,159.77,15.6004]
[1721268281006,1.21732586,159.79,159.77,15.6004]
[1721268281317,15.6388,159.86,159.77,15.6004]
[1721268281318,15.6417,159.83,159.77,15.6004]
[1721268281624,6.2586,159.78,159.73,15.9102]
[1721268281955,1.21732586,159.77,159.73,15.9102]
[1721268282309,6.2586,159.78,159.73,15.9102]
[1721268282310,7.47682586,159.76,159.73,15.9102]
[1721268282504,1.21732586,159.75,159.7,6.1428]
[1721268282701,6.259,159.77,159.71,1.25206269]
[1721268282925,1.21732586,159.81,159.71,16.90526269]
[1721268283111,6.2583,159.79,159.73,6.2605]
[1721268283310,1.21732586,159.78,159.72,6.2609]
[1721268283531,1.21732586,159.78,159.73,6.2604]
[1721268283732,1.21732586,159.78,159.72,1.25195064]
[1721268283733,6.2593,159.77,159.7,6.1428]
[1721268283940,1.21732586,159.76,159.7,12.4045]
[1721268284109,1.21732586,159.76,159.71,1.25210027]
[1721268284308,1.21732586,159.76,159.7,12.4045]
[1721268284620,7.47662586,159.76,159.7,12.4045]
[1721268284813,1.21732586,159.75,159.7,12.4045]
[1721268285126,1.21732586,159.75,159.7,6.1428]
[1721268285336,1.21732586,159.75,159.69,15.4947]
[1721268285514,1.21732586,159.74,159.69,15.4947]
[1721268285716,1.21732586,159.73,159.69,15.4947]
[1721268285915,20.0,159.79,159.69,15.4947]
[1721268285916,1.21732586,159.78,159.69,15.4947]
[1721268286126,46.21732586,159.78,159.69,15.4947]
[1721268287052,6.2602,159.74,159.69,15.4947]
[1721268287343,6.2609,159.72,159.69,15.4947]
[1721268287534,1.21732586,159.71,159.69,15.4947]
[1721268288114,1.21732586,159.71,159.66,1.25243865]
[1721268288321,1.21732586,159.7,159.65,32.293]
[1721268288521,1.21732586,159.7,159.66,1.2524775]
[1721268288740,1.21732586,159.7,159.65,38.5565]
[1721268289038,1.21732586,159.7,159.65,32.293]
[1721268289235,1.21732586,159.7,159.65,39.80912349]
[1721268289429,1.21732586,159.71,159.65,39.80912349]
[1721268289630,1.21732586,159.7,159.65,39.80912349]
[1721268289845,1.21732586,159.72,159.65,33.54552349]
[1721268290339,1.21732586,159.72,159.67,6.2629]
[1721268291024,1.21732586,159.73,159.68,1.25245069]
[1721268291223,1.21732586,159.73,159.66,6.2632]
[1721268291224,7.47782586,159.73,159.66,6.2632]
[1721268291720,7.47782586,159.73,159.67,6.2628]
[1721268292042,1.21732586,159.72,159.67,6.2628]
[1721268292225,6.2601,159.74,159.68,1.25238687]
[1721268292426,1.21732586,159.73,159.68,1.25238687]
[1721268292632,7.47792586,159.73,159.66,6.2632]
[1721268293030,6.261,159.72,159.65,38.5566]
[1721268293219,1.21732586,159.71,159.65,38.5566]
[1721268293829,1.21732586,159.7,159.65,32.293]
[1721268294022,1.21732586,159.7,159.65,33.54553687]
[1721268294452,7.47902586,159.7,159.65,16.6339]
[1721268294626,1.21732586,159.69,159.65,16.6339]
[1721268295829,1.21732586,159.69,159.63,0.8254865]
[1721268296024,6.2628,159.68,159.63,0.8254865]
[1721268296222,1.21732586,159.67,159.63,0.8254865]
[1721268296423,7.48032586,159.67,159.63,0.8254865]
[1721268296619,33.87,159.74,159.63,0.8254865]
[1721268296620,7.48082586,159.66,159.63,0.8254865]
[1721268296915,1.21732586,159.65,159.63,0.8254865]
[1721268297146,1.21732586,159.64,159.63,0.8254865]
[1721268298252,1.21732586,159.65,159.63,0.8254865]
[1721268299330,1.21732586,159.66,159.63,0.8254865]
[1721268300036,7.48062586,159.66,159.63,0.8254865]
[1721268300235,6.2638,159.65,159.63,0.8254865]
[1721268300419,1.21732586,159.64,159.63,0.8254865]
[1721268300623,1.21732586,159.67,159.63,0.8254865]
[1721268300842,1.21732586,159.68,159.63,0.8254865]
[1721268301055,1.21732586,159.67,159.63,0.8254865]
[1721268301229,7.48052586,159.67,159.63,0.8254865]
[1721268301545,1.21732586,159.66,159.63,0.8254865]
[1721268301758,6.2625,159.68,159.63,0.8254865]
[1721268301933,2.24892586,159.72,159.64,1.2525802]
[1721268301934,1.21732586,159.72,159.64,1.2525802]
[1721268302131,6.2624,159.69,159.64,1.25266668]
[1721268302450,7.47982586,159.68,159.63,0.8254865]
[1721268302746,1.21732586,159.67,159.63,0.8254865]
[1721268302955,6.2629,159.67,159.63,0.8254865]
[1721268303246,1.21732586,159.7,159.64,1.25280738]
[1721268303452,6.2622,159.69,159.64,1.25280738]
[1721268303637,1.21732586,159.68,159.64,1.25280738]
[1721268303948,6.2617,159.7,159.64,1.25280738]
[1721268304158,1.21732586,159.69,159.64,1.25280738]
[1721268304466,7.47952586,159.69,159.64,1.25280738]
[1721268304755,6.2626,159.68,159.63,2.07812137]
[1721268305242,6.2633,159.66,159.63,0.8254865]
[1721268305435,1.21732586,159.65,159.63,0.8254865]
[1721268305840,7.48132586,159.64,159.63,0.8254865]
[1721268306450,1.21732586,159.64,159.63,0.8254865]
[1721268306635,1.21732586,159.67,159.63,0.8254865]
[1721268306961,6.264,159.64,159.63,0.8254865]
[1721268307837,51.264,159.64,159.63,0.8254865]
[1721268308227,6.264,159.64,159.63,0.8254865]
[1721268309126,51.264,159.64,159.63,0.8254865]
[1721268309339,52.48132586,159.64,159.63,0.8254865]
[1721268309540,78.76222586,159.64,159.63,0.8254865]
[1721268311747,78.76222586,159.64,159.63,8.65e-05]
[1721268315145,78.76222586,159.64,159.53,16.6572]
[1721268315146,6.2668,159.57,159.53,16.6572]
[1721268315344,6.2665,159.58,159.53,16.6572]
[1721268315562,6.266,159.59,159.54,1.25345269]
[1721268315752,1.21732586,159.58,159.54,1.25345269]
[1721268315963,1.21732586,159.58,159.53,22.9253]
[1721268316150,1.21732586,159.57,159.53,16.6572]
[1721268316352,21.21732586,159.61,159.53,16.6572]
[1721268316556,46.21732586,159.6,159.53,16.6572]
[1721268316866,6.2668,159.57,159.53,16.6572]
[1721268317070,1.21732586,159.56,159.53,16.6572]
[1721268318160,7.48452586,159.56,159.53,16.6572]
[1721268318361,1.21732586,159.55,159.53,16.6572]
[1721268319541,1.21732586,159.58,159.49,16.1421]
[1721268319849,6.2684,159.53,159.49,16.1421]
[1721268320043,1.21732586,159.52,159.49,16.1421]
[1721268320269,1.21732586,159.53,159.49,16.1421]
[1721268320468,7.48582586,159.53,159.49,16.1421]
[1721268320668,1.21732586,159.52,159.49,16.1421]
[1721268322269,1.21732586,159.51,159.49,16.1421]
[1721268322459,15.6678,159.57,159.49,16.1421]
[1721268322781,66.21732586,159.56,159.49,16.1421]
[1721268324182,1.21732586,159.5,159.47,0.8254865]
[1721268324353,7.48692586,159.5,159.47,0.8254865]
[1721268324678,1.21732586,159.49,159.47,0.8254865]
[1721268325981,1.21732586,159.48,159.47,0.8254865]
[1721268327049,7.48762586,159.48,159.47,0.8254865]
[1721268327250,1.21732586,159.49,159.47,0.8254865]
[1721268327462,36.4599,159.5,159.47,0.8254865]
[1721268327463,1.21732586,159.48,159.47,0.8254865]
[1721268327881,7.48762586,159.48,159.47,0.8254865]
[1721268328450,30.19,159.5,159.47,0.8254865]
[1721268328451,7.48732586,159.49,159.47,0.8254865]
[1721268328675,1.21732586,159.48,159.47,0.8254865]
[1721268329073,30.19,159.5,159.47,7.0960865]
[1721268329261,6.2684,159.53,159.47,7.0960865]
[1721268329262,6.2692,159.51,159.47,0.8254865]
[1721268329463,1.21732586,159.5,159.47,0.8254865]
[1721268329682,7.48702586,159.5,159.47,0.8254865]
[1721268329877,1.21732586,159.49,159.47,0.8254865]
[1721268330875,6.2691,159.52,159.47,0.8254865]
[1721268331082,1.21732586,159.51,159.47,0.8254865]
[1721268331287,6.2695,159.5,159.47,0.8254865]
[1721268331477,1.21732586,159.49,159.47,0.8254865]
[1721268331787,1.21732586,159.51,159.47,0.8254865]
[1721268332158,6.2696,159.5,159.47,0.8254865]
[1721268332356,1.21732586,159.5,159.47,0.8254865]
[1721268333276,1.21732586,159.55,159.48,1.25408929]
[1721268333459,1.21732586,159.54,159.48,6.27]
[1721268333788,1.21732586,159.54,159.49,1.25386612]
[1721268333962,6.2683,159.54,159.47,8.34994877]
[1721268334156,1.21732586,159.53,159.47,0.8254865]
[1721268334353,15.6668,159.58,159.47,0.8254865]
[1721268334674,1.21732586,159.57,159.47,0.8254865]
[1721268334979,66.21732586,159.57,159.47,0.8254865]
[1721268335359,6.2688,159.52,159.47,0.8254865]
[1721268335576,1.21732586,159.56,159.47,0.8254865]
[1721268335783,6.2681,159.54,159.48,7.52425589]
[1721268335960,1.21732586,159.53,159.48,7.52425589]
[1721268336480,1.21732586,159.53,159.48,1.25405589]
[1721268337067,1.21732586,159.53,159.49,1.2539057]
[1721268337466,1.21732586,159.53,159.47,0.8254865]
[1721268337672,1.21732586,159.56,159.47,2.07945496]
[1721268338071,6.2685,159.53,159.47,0.8254865]
[1721268338286,7.48612586,159.52,159.47,0.8254865]
[1721268338588,1.21732586,159.51,159.47,2.07945099]
[1721268338787,1.21732586,159.51,159.47,0.8254865]
[1721268338975,7.48662586,159.51,159.47,0.8254865]
[1721268339173,7.48692586,159.5,159.47,0.8254865]
[1721268339372,1.21732586,159.49,159.47,0.8254865]
[1721268340073,1.21732586,159.48,159.47,0.8254865]
[1721268340387,6.2695,159.51,159.47,0.8254865]
[1721268340571,7.48702586,159.5,159.47,0.8254865]
[1721268340773,1.21732586,159.49,159.47,0.8254865]
[1721268341175,1.21732586,159.48,159.47,0.8254865]
[1721268341375,7.48762586,159.48,159.47,0.8254865]
[1721268341689,6.2703,159.48,159.47,0.8254865]
[1721268343288,6.27,159.49,159.47,0.8254865]
[1721268343489,1.21732586,159.48,159.47,0.8254865]
[1721268343687,1.21732586,159.53,159.47,0.8254865]
[1721268343889,1.21732586,159.58,159.48,16.92908565]
[1721268344090,6.3541,159.59,159.48,23.19918565]
[1721268344091,6.2681,159.54,159.48,23.19918565]
[1721268344301,1.21732586,159.53,159.48,23.19918565]
[1721268344499,1.21732586,159.53,159.48,16.92908565]
[1721268344795,6.2687,159.53,159.47,0.8254865]
[1721268344976,1.21732586,159.52,159.47,0.8254865]
[1721268345176,6.2684,159.53,159.47,8.35024807]
[1721268345390,7.48612586,159.52,159.47,0.8254865]
[1721268345587,1.21732586,159.51,159.47,0.8254865]
[1721268346885,1.21732586,159.52,159.47,0.8254865]
[1721268347103,1.21732586,159.51,159.47,0.8254865]
[1721268348179,6.2682,159.54,159.47,8.35013178]
[1721268348504,6.2689,159.52,159.47,0.8254865]
[1721268348714,1.21732586,159.51,159.47,0.8254865]
[1721268349006,7.48502586,159.55,159.49,6.2698]
[1721268349171,1.21732586,159.54,159.49,6.2698]
[1721268349374,1.21732586,159.54,159.5,6.2695]
[1721268349599,1.21732586,159.54,159.49,6.2698]
[1721268349806,1.21732586,159.54,159.47,16.5017865]
[1721268349807,1.21732586,159.54,159.5,6.2695]
[1721268350180,1.21732586,159.53,159.5,6.2695]
[1721268350391,1.21732586,159.53,159.49,6.2698]
[1721268350699,1.21732586,159.55,159.49,6.2698]
[1721268350876,7.48402586,159.58,159.51,16.6117]
[1721268351081,1.21732586,159.57,159.52,7.52229129]
[1721268351478,6.2673,159.56,159.51,32.2841]
[1721268351686,1.21732586,159.55,159.51,32.2841]
[1721268352022,1.21732586,159.55,159.51,17.86535221]
[1721268352409,1.21732586,159.55,159.51,17.8653539]
[1721268352580,1.21732586,159.55,159.51,16.6117]
[1721268352781,1.21732586,159.56,159.51,24.13444594]
[1721268352988,1.21732586,159.56,159.51,22.8808]
[1721268353411,46.21732586,159.56,159.51,16.6117]
[1721268353726,52.48492586,159.56,159.51,16.6117]
[1721268353924,1.21732586,159.55,159.51,16.6117]
[1721268354135,1.21732586,159.54,159.51,16.6117]
[1721268354433,7.48532586,159.54,159.51,16.6117]
[1721268354619,6.2684,159.53,159.51,16.6117]
[1721268354928,7.48612586,159.52,159.47,16.1201865]
[1721268355110,1.21732586,159.51,159.47,16.1201865]
[1721268355705,6.2695,159.51,159.47,16.1201865]
[1721268355919,1.21732586,159.5,159.47,16.1201865]
[1721268356701,1.21732586,159.51,159.47,16.1201865]
[1721268357222,7.48652586,159.51,159.47,16.1201865]
[1721268357535,1.21732586,159.5,159.47,16.1201865]
[1721268357713,1.21732586,159.51,159.47,16.1201865]
[1721268357923,1.21732586,159.52,159.47,23.64459394]
[1721268358116,1.21732586,159.52,159.47,22.3905865]
[1721268358524,1.21732586,159.51,159.47,16.1201865]
[1721268358830,21.21732586,159.55,159.47,16.1201865]
[1721268359006,6.2695,159.5,159.47,16.1201865]
[1721268359206,35.6696,159.55,159.47,16.1201865]
[1721268359207,1.21732586,159.53,159.47,16.1201865]
[1721268359401,6.2689,159.52,159.47,16.1201865]
[1721268359626,1.21732586,159.51,159.47,16.1201865]
[1721268360318,1.21732586,159.52,159.48,1.253977]
[1721268360526,6.2916,159.57,159.5,6.2694]
[1721268360527,6.2673,159.56,159.5,6.2694]
[1721268360728,1.21732586,159.55,159.5,6.2694]
[1721268360938,1.21732586,159.56,159.51,7.52266228]
[1721268361132,1.21732586,159.57,159.52,7.52218008]
[1721268361337,1.21732586,159.57,159.52,6.2686]
[1721268361654,1.21732586,159.58,159.53,1.25358384]
[1721268361825,1.21732586,159.61,159.54,15.3557]
[1721268362142,237.7438,159.67,159.54,15.3557]
[1721268362143,1.21732586,159.64,159.55,1.25328881]
[1721268362449,7.48062586,159.66,159.6,6.2655]
[1721268362620,1.21732586,159.66,159.61,23.07543821]
[1721268362813,1.21732586,159.67,159.61,29.44553821]
[1721268363238,1.21732586,159.67,159.61,21.9275]
[1721268363442,1.21732586,159.67,159.61,15.5574]
[1721268363650,6.2644,159.64,159.61,15.5574]
[1721268363850,6.2648,159.62,159.57,21.9791]
[1721268364040,7.48252586,159.61,159.57,21.9791]
[1721268364216,7.48312586,159.6,159.57,21.9791]
[1721268364416,6.2656,159.6,159.57,21.9791]
[1721268364750,1.21732586,159.59,159.57,15.6223]
[1721268364952,7.48342586,159.59,159.57,15.6223]
[1721268365250,1.21732586,159.65,159.57,15.6223]
[1721268365427,6.2648,159.63,159.57,15.6223]
[1721268365737,1.21732586,159.64,159.57,15.6223]
[1721268365738,7.48252586,159.62,159.57,15.6223]
[1721268365943,6.2645,159.63,159.58,1.25321286]
[1721268366118,1.21732586,159.62,159.58,1.25321286]
[1721268366314,1.21732586,159.62,159.57,15.6223]
[1721268366547,6.2654,159.61,159.57,15.6223]
[1721268366744,7.48212586,159.62,159.57,15.6223]
[1721268366921,6.2645,159.63,159.58,1.25321411]
[1721268367125,1.21732586,159.62,159.58,1.25321411]
[1721268367342,6.2653,159.61,159.57,15.6223]
[1721268367647,7.48312586,159.6,159.57,15.6223]
[1721268367955,6.2658,159.6,159.57,15.6223]
[1721268368243,1.21732586,159.64,159.58,1.25327915]
[1721268368615,7.48142586,159.64,159.58,7.51957915]
[1721268368820,7.48142586,159.64,159.58,1.25327915]
[1721268369053,6.2646,159.63,159.58,1.25327915]
[1721268369252,6.2653,159.61,159.57,15.6223]
[1721268369745,6.2662,159.59,159.57,15.6223]
[1721268369923,6.2664,159.58,159.57,15.6223]
[1721268370127,6.2664,159.58,159.52,12.7339]
[1721268370128,6.267,159.57,159.53,15.3084]
[1721268370429,6.267,159.57,159.53,16.56190772]
[1721268370638,6.2665,159.58,159.53,16.56190772]
[1721268370841,7.48422586,159.57,159.53,16.56190772]
[1721268371040,6.2669,159.57,159.53,15.3084]
[1721268371449,6.2664,159.58,159.53,16.56190396]
[1721268371742,1.21732586,159.57,159.53,16.56190396]
[1721268372550,7.48422586,159.57,159.53,16.56190396]
[1721268372846,1.21732586,159.56,159.53,15.3084]
[1721268373028,6.268,159.54,159.53,15.3084]
[1721268373525,6.2684,159.53,159.48,22.8742]
[1721268373729,6.2684,159.53,159.49,1.25379074]
[1721268373942,6.2679,159.55,159.49,1.25379074]
[1721268374142,7.48532586,159.54,159.49,1.25379074]
[1721268374352,6.268,159.54,159.49,1.25379074]
[1721268375048,1.21732586,159.53,159.49,1.25379074]
[1721268375248,6.268,159.54,159.49,1.25378294]
[1721268376147,6.2691,159.52,159.48,22.8742]
[1721268376352,1.21732586,159.51,159.48,22.8742]
[1721268376729,6.2691,159.52,159.48,22.8742]
[1721268377147,6.2684,159.53,159.48,22.8742]
[1721268377341,7.48612586,159.52,159.48,22.8742]
[1721268377524,1.21732586,159.51,159.48,22.8742]
[1721268377724,6.2688,159.52,159.48,22.8742]
[1721268377932,6.2697,159.5,159.48,16.2627]
[1721268378118,1.21732586,159.51,159.48,16.2627]
[1721268378336,6.2694,159.51,159.48,16.2627]
[1721268378528,1.21732586,159.54,159.48,16.2627]
[1721268378733,6.2697,159.5,159.48,16.2627]
[1721268378947,6.2688,159.52,159.48,16.2627]
[1721268379253,7.48612586,159.52,159.48,17.51672624]
[1721268379627,6.2688,159.52,159.48,16.2627]
[1721268381258,7.48652586,159.51,159.48,16.2627]
[1721268381554,6.2692,159.51,159.48,16.2627]
[1721268382052,6.2688,159.52,159.48,16.2627]
[1721268382250,1.21732586,159.54,159.49,1.25390673]
[1721268382843,6.2672,159.56,159.49,1.25390673]
[1721268383156,1.21732586,159.6,159.53,15.5607]
[1721268383371,1.21732586,159.64,159.56,6.2668]
[1721268383574,1.21732586,159.64,159.55,6.2675]
[1721268383864,1.21732586,159.64,159.54,16.92257451]
[1721268383865,6.2657,159.6,159.54,16.92257451]
[1721268384052,1.21732586,159.59,159.55,1.25335866]
[1721268384251,6.2657,159.6,159.54,21.9372]
[1721268384449,1.21732586,159.64,159.55,1.25325422]
[1721268384662,1.21732586,159.67,159.59,6.2659]
[1721268384846,6.2633,159.66,159.61,16.606]
[1721268385166,7.47952586,159.69,159.61,17.85893499]
[1721268385337,6.2622,159.69,159.62,6.2645]
[1721268385538,1.21732586,159.68,159.63,1.25261625]
[1721268385762,6.2622,159.69,159.63,7.51691625]
[1721268386071,6.2625,159.68,159.61,22.8709]
[1721268386379,6.2629,159.67,159.61,16.606]
[1721268386555,1.21732586,159.66,159.61,17.85878118]
[1721268386740,7.48072586,159.66,159.61,17.85878118]
[1721268386935,6.2634,159.66,159.61,17.85878118]
[1721268387886,7.48112586,159.65,159.61,17.85878118]
[1721268388167,1.21732586,159.64,159.61,16.606]
[1721268388373,21.21732586,159.68,159.61,16.606]
[1721268388556,6.264,159.65,159.61,16.606]
[1721268388757,7.48142586,159.64,159.61,16.606]
[1721268388971,1.21732586,159.63,159.61,16.606]
[1721268389149,6.2637,159.65,159.61,16.606]
[1721268389350,1.21732586,159.64,159.61,16.606]
[1721268389862,7.48142586,159.64,159.61,16.606]
[1721268390047,6.2637,159.65,159.61,16.606]
[1721268390248,1.21732586,159.65,159.61,16.606]
[1721268390453,7.48062586,159.66,159.61,17.85897408]
[1721268390867,6.2617,159.7,159.63,6.2641]
[1721268391071,1.21732586,159.69,159.64,1.25248601]
[1721268391342,6.2617,159.71,159.65,1.25255539]
[1721268391563,6.2622,159.69,159.63,6.2644]
[1721268391750,1.21732586,159.73,159.64,16.91197705]
[1721268391963,6.261,159.72,159.66,6.2632]
[1721268392145,15.6474,159.78,159.68,16.126]
[1721268392346,15.6474,159.78,159.68,17.37831387]
[1721268392946,6.2607,159.73,159.68,17.37831387]
[1721268393150,6.26,159.75,159.68,29.97141387]
[1721268393354,6.26,159.75,159.68,23.70901387]
[1721268393550,1.21732586,159.74,159.68,22.4567]
[1721268393853,6.261,159.72,159.68,22.4567]
[1721268394275,6.2606,159.73,159.68,23.7090308]
[1721268394583,6.2613,159.71,159.68,16.126]
[1721268394753,6.2609,159.72,159.68,16.126]
[1721268394956,1.21732586,159.77,159.68,16.126]
[1721268395273,6.2606,159.73,159.68,16.126]
[1721268395454,6.2613,159.71,159.68,16.126]
[1721268395662,7.47942586,159.7,159.68,16.126]
[1721268395847,6.2621,159.7,159.68,16.126]
[1721268396043,6.2614,159.71,159.68,16.126]
[1721268396247,1.21732586,159.7,159.68,16.126]
[1721268396972,6.2621,159.69,159.68,16.126]
[1721268397876,6.2618,159.7,159.68,16.126]
[1721268398080,1.21732586,159.69,159.64,21.6135]
[1721268398281,1.21732586,159.73,159.64,21.6135]
[1721268398471,46.21732586,159.73,159.64,21.6135]
[1721268398987,15.6531,159.72,159.64,15.4393]
[1721268399285,6.2633,159.66,159.64,15.4393]
[1721268399448,6.2629,159.67,159.64,15.4393]
[1721268400075,1.21732586,159.7,159.64,15.4393]
[1721268400257,7.47942586,159.7,159.64,15.4393]
[1721268400462,7.47942586,159.7,159.64,16.69198382]
[1721268400678,6.2623,159.69,159.64,15.4393]
[1721268400873,6.2629,159.67,159.64,15.4393]
[1721268401248,1.21732586,159.67,159.64,15.4393]
[1721268401478,6.2632,159.67,159.64,15.4393]
[1721268401780,7.48052586,159.67,159.64,15.4393]
[1721268401962,6.2634,159.66,159.64,15.4393]
[1721268403887,1.21732586,159.65,159.64,15.4393]
[1721268404965,7.48102586,159.65,159.64,15.4393]
[1721268405175,6.2642,159.64,159.6,22.5932]
[1721268405559,6.2637,159.65,159.6,22.5932]
[1721268405769,7.48142586,159.64,159.6,22.5932]
[1721268405968,6.2641,159.64,159.6,22.5932]
[1721268406290,1.21732586,159.63,159.6,22.5932]
[1721268406584,7.48182586,159.63,159.6,16.5671]
[1721268406760,1.21732586,159.62,159.6,16.5671]
[1721268407090,7.48222586,159.62,159.6,16.5671]
[1721268407284,6.2649,159.62,159.6,16.5671]
[1721268407470,6.2645,159.63,159.6,16.5671]
[1721268407788,6.2637,159.65,159.6,16.5671]
[1721268407993,1.21732586,159.64,159.6,16.5671]
[1721268408157,6.2642,159.64,159.6,16.5671]
[1721268408481,6.2639,159.65,159.6,16.5671]
[1721268408683,1.21732586,159.64,159.6,16.5671]
[1721268408863,20.0,159.68,159.6,16.5671]
[1721268409063,45.0,159.67,159.6,16.5671]
[1721268409786,6.2641,159.64,159.6,16.5671]
[1721268410282,6.2638,159.65,159.6,16.5671]
[1721268410463,6.2638,159.65,159.6,22.8327]
[1721268410789,6.2632,159.67,159.61,7.51805796]
[1721268410970,1.21732586,159.66,159.61,7.51805796]
[1721268411280,7.48072586,159.66,159.61,1.25295796]
[1721268411492,7.48112586,159.65,159.6,16.5671]
[1721268411660,6.2639,159.65,159.6,16.5671]
[1721268412187,7.48142586,159.64,159.6,17.82000911]
[1721268412379,1.21732586,159.67,159.6,16.5671]
[1721268412895,6.2642,159.64,159.6,16.5671]
[1721268413353,6.2637,159.65,159.6,16.5671]
[1721268413558,6.2641,159.64,159.6,16.5671]
[1721268414171,7.48192586,159.63,159.6,16.5671]
[1721268414372,1.21732586,159.62,159.6,16.5671]
[1721268414672,7.48222586,159.62,159.6,16.5671]
[1721268414879,6.2649,159.62,159.6,16.5671]
[1721268415459,6.2645,159.63,159.6,16.5671]
[1721268415663,1.21732586,159.62,159.6,16.5671]
[1721268416586,7.48172586,159.63,159.6,16.5671]
[1721268416785,7.48222586,159.62,159.6,16.5671]
[1721268416985,1.21732586,159.61,159.6,16.5671]
[1721268417291,7.48252586,159.61,159.56,22.1016]
[1721268417591,1.21732586,159.6,159.56,22.1016]
[1721268418277,7.48302586,159.6,159.56,15.5371]
[1721268418583,1.21732586,159.59,159.56,15.5371]
[1721268419089,6.2657,159.6,159.56,15.5371]
[1721268419290,1.21732586,159.59,159.56,15.5371]
[1721268420597,1.21732586,159.63,159.57,6.2667]
[1721268420785,1.21732586,159.63,159.56,21.8042]
[1721268421179,6.2651,159.62,159.56,21.8042]
[1721268421399,1.21732586,159.61,159.56,21.8042]
[1721268421702,6.2644,159.64,159.57,6.2667]
[1721268421907,1.21732586,159.63,159.58,6.2663]
[1721268422205,6.2623,159.69,159.63,15.5177]
[1721268422366,1.0316,159.76,159.64,1.25260061]
[1721268422367,1.21732586,159.71,159.64,1.25260061]
[1721268422565,6.261,159.72,159.65,7.51611237]
[1721268422768,1.21732586,159.71,159.65,7.51611237]
[1721268422987,1.21732586,159.7,159.64,6.264]
[1721268423495,1.21732586,159.7,159.65,1.25254697]
[1721268424095,1.21732586,159.7,159.64,1.25252643]
[1721268424305,6.2622,159.69,159.64,1.25252643]
[1721268424503,1.21732586,159.68,159.64,1.25252643]
[1721268424798,6.2618,159.7,159.64,1.25252643]
[1721268424970,1.21732586,159.73,159.66,6.2632]
[1721268425165,1.21732586,159.72,159.67,7.51510598]
[1721268425378,1.21732586,159.72,159.68,1.25235264]
[1721268426104,1.21732586,159.76,159.69,16.0947]
[1721268426318,1.21732586,159.76,159.7,1.25204744]
[1721268426598,1.21732586,159.76,159.71,7.51314863]
[1721268426786,7.47692586,159.76,159.71,1.25204863]
[1721268426974,1.21732586,159.75,159.71,1.25204863]
[1721268427600,1.21732586,159.75,159.7,1.25209717]
[1721268427784,6.2589,159.78,159.71,1.25209786]
[1721268428099,6.2583,159.79,159.7,15.6534]
[1721268428279,7.47592586,159.78,159.71,6.2613]
[1721268428474,6.2591,159.77,159.71,6.2613]
[1721268428783,6.2591,159.77,159.7,21.9151]
[1721268429190,7.47682586,159.76,159.7,21.9151]
[1721268429381,6.2595,159.76,159.71,1.2520276]
[1721268430597,6.259,159.77,159.71,1.2520276]
[1721268430780,1.21732586,159.76,159.71,1.2520276]
[1721268431705,7.47682586,159.76,159.7,21.9151]
[1721268431910,6.2595,159.76,159.71,1.25202531]
[1721268432126,6.2589,159.78,159.71,7.51312531]
[1721268432303,1.21732586,159.81,159.73,6.2604]
[1721268432620,6.2582,159.79,159.74,1.25174384]
[1721268432777,6.2587,159.78,159.74,1.25174384]
[1721268432985,6.259,159.77,159.7,21.9148]
[1721268433211,1.21732586,159.81,159.71,1.2519061]
[1721268433512,21.21732586,159.81,159.7,21.9148]
[1721268433810,45.0,159.8,159.7,21.9148]
[1721268434009,1.21732586,159.79,159.71,1.2519412]
[1721268434212,6.259,159.77,159.72,1.25193232]
[1721268434707,6.2588,159.78,159.71,6.2612]
[1721268434911,6.2593,159.77,159.7,21.9151]
[1721268435098,7.47702586,159.76,159.7,15.6534]
[1721268435305,6.259,159.77,159.7,15.6534]
[1721268435509,6.2586,159.78,159.71,1.25198509]
[1721268435690,6.2586,159.78,159.7,15.6534]
[1721268436396,20.0,159.81,159.7,15.6534]
[1721268436397,7.47632586,159.77,159.71,6.2612]
[1721268436598,6.259,159.77,159.72,1.25192465]
[1721268437308,1.21732586,159.8,159.7,21.915]
[1721268437309,6.2594,159.76,159.7,21.915]
[1721268438185,6.259,159.77,159.71,6.2612]
[1721268438687,7.47672586,159.76,159.7,15.6534]
[1721268438900,1.21732586,159.76,159.69,16.0947]
[1721268439098,51.288,159.81,159.69,16.0947]
[1721268439099,6.2606,159.73,159.69,16.0947]
[1721268440106,6.2602,159.74,159.7,1.25216495]
[1721268440310,7.47652586,159.77,159.71,1.25215788]